{"text_format":"1","workbook":"xlsx","n_sheets":4,"sheets":["Examensstruktur","Periodschema","Statistik","Data"],"not_rendered":{"charts":4,"images":12,"macros":1,"external_links":0,"defined_names":0,"comments":2,"pivot_tables":0},"unopened":[],"bounds":{"document_bytes":16777216,"sheet_cells":100000,"rows_first":2000,"rows_last":500,"rows_between":2000,"halvings":0,"cell_chars":16384,"cell_head_chars":4096},"cells_cut":0,"cells_raw":0,"read":"whole","date_system":"1900"}

{"sheet":"Examensstruktur","index":0,"n_rows":51,"n_cols":2,"rows_kept":51,"cut":false,"hidden":false,"merged":[]}
["Studieplan","by Sofia Grönroos & Markus Storsjö 2009"]
["Svakar Teknolog"]
["12345A"]
["steknolo@cc.hut.fi"]
[]
[null,"Diplomingenjörsexamen"]
[null,"Diplomarbete D, 30 sp"]
[]
[]
[null,"Studier i vetenskaplig metodik M, 10 sp"]
[]
[]
[null,"Valfria studier W, 20 sp"]
[]
[]
[null,"Specialmodul C, 20 sp"]
[null,"Modulens namn"]
[]
[]
[null,"Fortsättningsmodul B2, 20 sp"]
[null,"Modulens namn"]
[]
[]
[null,"Fördjupande modul A3, 20 sp"]
[null,"Modulens namn"]
[]
[]
[]
[null,"Kandidatexamen"]
[null,"Kandidatarbete och seminarium K, 10 sp"]
[]
[]
[null,"Valfria studier V, 10 sp"]
[]
[]
[null,"Grundmodul B1, 20 sp"]
[null,"Modulens namn"]
[]
[]
[null,"Fortsättningsmodul A2, 20 sp"]
[null,"Modulens namn"]
[]
[]
[null,"Grundmodul A1, 20 sp"]
[null,"Modulens namn"]
[]
[]
[null,"Programmets gemensamma studier O, 20 sp"]
[]
[]
[null,"Grundstudier P, 80 sp"]

{"sheet":"Periodschema","index":1,"n_rows":109,"n_cols":5,"rows_kept":109,"cut":false,"hidden":false,"merged":[]}
["Kurs","sp","modul","målvitsord","vitsord"]
[]
["Läsår 2007-08"]
["Period I"]
[]
[null,{"$f":"SUM(B5:B5)","v":0}]
[]
["Period II"]
[]
[null,{"$f":"SUM(B9:B9)","v":0}]
["Studiepoäng höstterminen:",{"$f":"B10+B6","v":0}]
[]
["Period III"]
[]
[null,{"$f":"SUM(B14:B14)","v":0}]
[]
["Period IV"]
[]
[null,{"$f":"SUM(B18:B18)","v":0}]
["Studiepoäng vårterminen:",{"$f":"B15+B19","v":0}]
["Studiepoäng totalt:",{"$f":"SUM(B11,B20)","v":0}]
[]
[]
["Läsår 2008-09"]
["Period I"]
[]
[null,{"$f":"B26","v":0}]
[]
["Period II"]
[]
[null,{"$f":"B30","v":0}]
["Studiepoäng höstterminen:",{"$f":"B31+B27","v":0}]
[]
["Period III"]
[]
[null,{"$f":"B35","v":0}]
[]
["Period IV"]
[]
[null,{"$f":"B39","v":0}]
["Studiepoäng vårterminen:",{"$f":"B40+B36","v":0}]
["Studiepoäng totalt:",{"$f":"B41+B32","v":0}]
[]
[]
["Läsår 2009-10"]
["Period I"]
[]
[null,{"$f":"B47","v":0}]
[]
["Period II"]
[]
[null,{"$f":"B51","v":0}]
["Studiepoäng höstterminen:",{"$f":"B52+B48","v":0}]
[]
["Period III"]
[]
[null,{"$f":"B56","v":0}]
[]
["Period IV"]
[]
[null,{"$f":"B60","v":0}]
["Studiepoäng vårterminen:",{"$f":"B61+B57","v":0}]
["Studiepoäng totalt:",{"$f":"B62+B53","v":0}]
[]
[]
["Läsår 2010-11"]
["Period I"]
[]
[null,{"$f":"B68","v":0}]
[]
["Period II"]
[]
[null,{"$f":"B72","v":0}]
["Studiepoäng höstterminen:",{"$f":"B73+B69","v":0}]
[]
["Period III"]
[]
[null,{"$f":"B77","v":0}]
[]
["Period IV"]
[]
[null,{"$f":"B81","v":0}]
["Studiepoäng vårterminen:",{"$f":"B82+B78","v":0}]
["Studiepoäng totalt:",{"$f":"B83+B74","v":0}]
[]
[]
["Läsår 2011-12"]
["Period I"]
[]
[null,{"$f":"B89","v":0}]
[]
["Period II"]
[]
[null,{"$f":"B93","v":0}]
["Studiepoäng höstterminen:",{"$f":"B94+B90","v":0}]
[]
["Period III"]
[]
[null,{"$f":"B98","v":0}]
[]
["Period IV"]
[]
[null,{"$f":"B102","v":0}]
["Studiepoäng vårterminen:",{"$f":"B103+B99","v":0}]
["Studiepoäng totalt:",{"$f":"B104+B95","v":0}]
[]
[]
["Planerade studiepoäng:",0,null,"Vitsordens viktade"]
["Avklarade studiepoäng:",0,null,"medelvärde:"]

{"sheet":"Statistik","index":2,"n_rows":21,"n_cols":9,"rows_kept":21,"cut":false,"hidden":false,"merged":[]}
["period","sp","kumulativa sp","medelvitsord","målmedelvitsord",null,null,"Avklarade studier","Återstående studier"]
["1998-99   I",0,0,null,null,null,null,0,300]
["II",0,0]
["III",0,0]
["IV",0,0]
["1999-00   I",0,0]
["II",0,0]
["III",0,0]
["IV",0,0]
["2000-01   I",0,0]
["II",0,0]
["III",0,0]
["IV",0,0]
["2001-02   I",0,0]
["II",0,0]
["III",0,0]
["IV",0,0]
["2002-03   I",0,0]
["II",0,0]
["III",0,0]
["IV",0,0]

{"sheet":"Data","index":3,"n_rows":1,"n_cols":16,"rows_kept":1,"cut":false,"hidden":false,"merged":[]}
["Kursnamn","sp","modul","läsår","startperiod","slutperiod","målvitsord","vitsord",null,null,"Antal kurser:",0,"Startår:",2007,"Antal studieår:",5]